fUSD/lending_fUSD_20240814
["ID","MTS","AMOUNT","RATE_DAILY","PERIOD"]
[334946283,1723666242655,-506.43459919,0.00013971,2]
[334946284,1723666242665,-331.94790955,0.00013971,2]
[334946285,1723666242674,-500.0,0.00013971,2]
[334946286,1723666242684,-507.97653605,0.00013971,2]
[334946287,1723666242693,-504.2435167,0.00013971,2]
[334946288,1723666242703,-366.74161857,0.00013971,2]
[334946289,1723666242712,-500.0,0.00013971,2]
[334946290,1723666242721,-505.13092816,0.00013971,2]
[334946291,1723666242731,-500.0,0.00013971,2]
[334946292,1723666242740,-500.0,0.00013971,2]
[334946293,1723666242749,-500.0,0.00013971,2]
[334946294,1723666242758,-502.1547838,0.00013971,2]
[334946295,1723666242767,-500.0,0.00013971,2]
[334946296,1723666242776,-501.50753106,0.00013971,2]
[334946297,1723666242786,-583.2252063,0.00013971,2]
[334946298,1723666242795,-504.58550711,0.00013971,2]
[334946299,1723666242805,-502.0075044,0.00013971,2]
[334946300,1723666242814,-500.0,0.00013971,2]
[334946301,1723666242824,-505.41757199,0.00013971,2]
[334946302,1723666242833,-232.80353608,0.00013971,2]
[334946303,1723666242842,-500.0,0.00013971,2]
[334946304,1723666242851,-500.0,0.00013971,2]
[334946305,1723666242860,-500.0,0.00013971,2]
[334946306,1723666242870,-500.0,0.00013971,2]
[334946307,1723666242879,-500.0,0.00013971,2]
[334946308,1723666242889,-500.0,0.00013971,2]
[334946309,1723666242898,-500.0,0.00013971,2]
[334946310,1723666242907,-2936.12,0.00013971,2]
[334946311,1723666242916,-500.0,0.00013971,2]
[334946312,1723666242925,-500.0,0.00013971,2]
[334946313,1723666242934,-500.0,0.00013971,2]
[334946314,1723666242944,-1403.66,0.00013971,2]
[334946315,1723666242954,-500.0,0.00013971,2]
[334946316,1723666242963,-500.0,0.00013971,2]
[334946317,1723666242973,-721.32,0.00013971,2]
[334946318,1723666242982,-500.0,0.00013971,2]
[334946319,1723666242991,-1407.09,0.00013971,2]
[334946320,1723666243000,-500.0,0.00013971,2]
[334946321,1723666243009,-500.0,0.00013971,2]
[334946322,1723666243019,-500.0,0.00013971,2]
[334946323,1723666243028,-764.75,0.00013971,2]
[334946324,1723666243037,-500.0,0.00013971,2]
[334946325,1723666243047,-632.31,0.00013971,2]
[334946326,1723666243055,-500.0,0.00013971,2]
[334946327,1723666243065,-613.91,0.00013973,2]
[334946328,1723666243074,-650.0,0.00014,2]
[334946329,1723666243083,-500.0,0.00014131,2]
[334946330,1723666243093,-500.0,0.00014131,2]
[334946331,1723666243102,-500.0,0.00014131,2]
[334946332,1723666243111,-500.0,0.00014131,2]
[334946333,1723666243120,-500.0,0.00014131,2]
[334946335,1723666243130,-500.0,0.00014131,2]
[334946336,1723666243141,-500.0,0.00014131,2]
[334946338,1723666243151,-500.0,0.00014132,2]
[334946341,1723666243160,-500.0,0.00014132,2]
[334946344,1723666243169,-500.0,0.00014132,2]
[334946347,1723666243179,-500.0,0.00014132,2]
[334946349,1723666243189,-500.0,0.00014132,2]
[334946351,1723666243199,-500.0,0.00014132,2]
[334946354,1723666243208,-500.0,0.00014132,2]
[334946357,1723666243217,-500.0,0.00014132,2]
[334946359,1723666243226,-500.0,0.00014132,2]
[334946361,1723666243235,-500.0,0.00014132,2]
[334946363,1723666243245,-566.46,0.00014132,2]
[334946378,1723666243341,-500.0,0.00014132,2]
[334946380,1723666243351,-500.0,0.00014132,2]
[334946382,1723666243361,-500.0,0.00014132,2]
[334946384,1723666243370,-500.0,0.00014132,2]
[334946386,1723666243380,-500.0,0.00014132,2]
[334946388,1723666243390,-564.7,0.00014132,2]
[334946390,1723666243399,-564.32,0.00014132,2]
[334946392,1723666243408,-500.0,0.00014132,2]
[334946394,1723666243418,-500.0,0.00014132,2]
[334946396,1723666243427,-500.0,0.00014132,2]
[334946398,1723666243438,-909.97,0.00014132,2]
[334946400,1723666243448,-1279.73,0.00014132,2]
[334946402,1723666243457,-437.46313124,0.00014132,2]
[334946404,1723666243467,-500.0,0.00014132,2]
[334946406,1723666243476,-500.0,0.00014132,2]
[334946408,1723666243485,-500.0,0.00014132,2]
[334946410,1723666243496,-500.0,0.00014132,2]
[334946412,1723666243505,-575.42,0.00014132,2]
[334946414,1723666243515,-500.0,0.00014132,2]
[334946416,1723666243524,-297.05069768,0.00014132,2]
[334946418,1723666243534,-500.0,0.00014132,2]
[334946420,1723666243543,-601.65,0.00014132,2]
[334946422,1723666243552,-500.0,0.00014132,2]
[334946424,1723666243562,-500.0,0.00014132,2]
[334946426,1723666243571,-500.0,0.00014132,2]
[334946428,1723666243580,-500.0,0.00014132,2]
[334946430,1723666243590,-500.0,0.00014132,2]
[334946432,1723666243599,-500.0,0.00014132,2]
[334946434,1723666243608,-500.0,0.00014132,2]
[334946436,1723666243617,-500.0,0.00014132,2]
[334946437,1723666243627,-500.0,0.00014132,2]
[334946439,1723666243637,-526.72421904,0.00014132,2]
[334946441,1723666243646,-557.57792663,0.00014132,2]
[334946443,1723666243656,-500.0,0.00014132,2]
[334946445,1723666243665,-500.0,0.00014132,2]
[334946448,1723666243675,-500.0,0.00014132,2]
[334946450,1723666243684,-515.7464666,0.00014132,2]
[334946452,1723666243694,-613.5,0.00014132,2]
[334946454,1723666243703,-563.34,0.00014132,2]
[334946456,1723666243712,-500.0,0.00014132,2]
[334946458,1723666243721,-500.0,0.00014132,2]
[334946459,1723666243731,-835.67,0.00014132,2]
[334946461,1723666243740,-500.0,0.00014132,2]
[334946464,1723666243750,-500.0,0.00014132,2]
[334946466,1723666243759,-546.34095394,0.00014132,2]
[334946468,1723666243769,-500.0,0.00014132,2]
[334946472,1723666243778,-500.0,0.00014132,2]
[334946475,1723666243788,-602.07,0.00014132,2]
[334946478,1723666243797,-506.06413277,0.00014132,2]
[334946481,1723666243806,-500.0,0.00014132,2]
[334946484,1723666243816,-500.0,0.00014132,2]
[334946486,1723666243825,-500.0,0.00014132,2]
[334946488,1723666243834,-500.0,0.00014132,2]
[334946490,1723666243844,-500.0,0.00014132,2]
[334946492,1723666243853,-500.0,0.00014132,2]
[334946494,1723666243862,-500.0,0.00014132,2]
[334946496,1723666243871,-432.60291894,0.00014132,2]
[334946498,1723666243880,-500.0,0.00014132,2]
[334946499,1723666243890,-500.0,0.00014132,2]
[334946501,1723666243899,-500.0,0.00014132,2]
[334946503,1723666243908,-500.0,0.00014132,2]
[334946505,1723666243918,-500.0,0.00014132,2]
[334946508,1723666243932,-500.0,0.00014132,2]
[334946511,1723666243951,-500.0,0.00014132,2]
[334946514,1723666243967,-500.0,0.00014132,2]
[334946517,1723666243985,-516.07030307,0.00014132,2]
[334946519,1723666244003,-500.0,0.00014132,2]
[334946522,1723666244019,-500.0,0.00014132,2]
[334946525,1723666244037,-500.0,0.00014132,2]
[334946528,1723666244052,-500.0,0.00014132,2]
[334946530,1723666244065,-500.0,0.00014132,2]
[334946533,1723666244084,-500.0,0.00014132,2]
[334946536,1723666244103,-500.0,0.00014132,2]
[334946538,1723666244116,-500.0,0.00014132,2]
[334946541,1723666244131,-338.31762621,0.00014132,2]
[334946545,1723666244158,-161.68237379,0.00014132,2]
[334946548,1723666244175,-388.31762621,0.00014132,2]
[334946551,1723666244193,-111.68237379,0.00014132,2]
[334946554,1723666244209,-500.0,0.00014132,2]
[334946556,1723666244224,-500.0,0.00014132,2]
[334946559,1723666244239,-500.0,0.00014132,2]
[334946561,1723666244254,-500.0,0.00014132,2]
[334946564,1723666244268,-510.05754494,0.00014132,2]
[334946566,1723666244282,-500.0,0.00014132,2]
[334946569,1723666244297,-500.0,0.00014132,2]
[334946571,1723666244315,-500.0,0.00014132,2]
[334946574,1723666244329,-500.0,0.00014132,2]
[334946576,1723666244343,-537.47165573,0.00014132,2]
[334946579,1723666244358,-500.0,0.00014132,2]
[334946581,1723666244372,-500.0,0.00014132,2]
[334946584,1723666244387,-500.0,0.00014132,2]
[334946586,1723666244402,-514.49598582,0.00014132,2]
[334946589,1723666244416,-500.0,0.00014132,2]
[334946592,1723666244431,-500.0,0.00014132,2]
[334946594,1723666244446,-500.0,0.00014132,2]
[334946597,1723666244460,-510.42964303,0.00014132,2]
[334946599,1723666244474,-513.74526871,0.00014132,2]
[334946602,1723666244489,-500.0,0.00014132,2]
[334946605,1723666244505,-514.91734158,0.00014132,2]
[334946607,1723666244520,-509.90173069,0.00014132,2]
[334946610,1723666244534,-508.05829779,0.00014132,2]
[334946612,1723666244549,-500.0,0.00014132,2]
[334946614,1723666244562,-500.0,0.00014132,2]
[334946615,1723666244577,-500.0,0.00014132,2]
[334946616,1723666244592,-500.0,0.00014132,2]
[334946617,1723666244607,-502.93827624,0.00014132,2]
[334946618,1723666244623,-500.0,0.00014132,2]
[334946619,1723666244638,-500.0,0.00014132,2]
[334946620,1723666244652,-500.0,0.00014132,2]
[334946621,1723666244666,-514.54589292,0.00014132,2]
[334946623,1723666244680,-513.56798606,0.00014132,2]
[334946626,1723666244694,-500.0,0.00014132,2]
[334946628,1723666244709,-510.58311863,0.00014132,2]
[334946631,1723666244725,-510.5319691,0.00014132,2]
[334946633,1723666244735,-509.74052786,0.00014132,2]
[334946635,1723666244744,-500.0,0.00014132,2]
[334946637,1723666244754,-500.0,0.00014132,2]
[334946639,1723666244767,-500.0,0.00014132,2]
[334946641,1723666244777,-500.0,0.00014132,2]
[334946643,1723666244786,-500.0,0.00014132,2]
[334946645,1723666244795,-524.97798708,0.00014132,2]
[334946647,1723666244805,-500.0,0.00014132,2]
[334946649,1723666244814,-500.0,0.00014132,2]
[334946670,1723666245010,-500.0,0.00014132,2]
[334946675,1723666245044,-500.0,0.00014132,2]
[334946677,1723666245055,-500.0,0.00014132,2]
[334946679,1723666245064,-500.0,0.00014132,2]
[334946681,1723666245073,-500.0,0.00014132,2]
[334946683,1723666245082,-500.0,0.00014132,2]
[334946685,1723666245091,-500.0,0.00014132,2]
[334946687,1723666245100,-500.0,0.00014132,2]
[334946689,1723666245109,-500.0,0.00014132,2]
[334946691,1723666245119,-500.0,0.00014132,2]
[334946693,1723666245128,-500.0,0.00014132,2]
[334946695,1723666245138,-500.0,0.00014132,2]
[334946697,1723666245147,-631.47,0.00014132,2]
[334946699,1723666245156,-500.0,0.00014132,2]
[334946701,1723666245165,-500.0,0.00014132,2]
[334946703,1723666245174,-500.0,0.00014132,2]
[334946705,1723666245183,-500.0,0.00014132,2]
[334946707,1723666245192,-510.23132967,0.00014132,2]
[334946709,1723666245201,-500.0,0.00014132,2]
[334946711,1723666245210,-500.0,0.00014132,2]
[334946713,1723666245219,-500.0,0.00014132,2]
[334946714,1723666245228,-500.0,0.00014132,2]
[334946716,1723666245237,-500.0,0.00014132,2]
[334946718,1723666245246,-500.0,0.00014132,2]
[334946720,1723666245255,-511.87570404,0.00014132,2]
[334946722,1723666245264,-537.8,0.00014132,2]
[334946724,1723666245273,-500.0,0.00014132,2]
[334946726,1723666245282,-500.0,0.00014132,2]
[334946728,1723666245291,-509.94806386,0.00014132,2]
[334946730,1723666245303,-500.0,0.00014132,2]
[334946732,1723666245312,-509.26091722,0.00014132,2]
[334946734,1723666245321,-500.0,0.00014132,2]
[334946736,1723666245330,-515.37747133,0.00014132,2]
[334946738,1723666245339,-512.30870132,0.00014132,2]
[334946740,1723666245349,-500.0,0.00014132,2]
[334946742,1723666245357,-500.0,0.00014132,2]
[334946744,1723666245366,-500.0,0.00014132,2]
[334946746,1723666245378,-500.0,0.00014132,2]
[334946748,1723666245387,-500.0,0.00014132,2]
[334946750,1723666245396,-500.0,0.00014132,2]
[334946752,1723666245405,-500.0,0.00014132,2]
[334946754,1723666245414,-511.1176384,0.00014132,2]
[334946756,1723666245423,-500.0,0.00014132,2]
[334946757,1723666245432,-500.0,0.00014132,2]
[334946759,1723666245441,-474.8471521,0.00014132,2]
[334946761,1723666245450,-500.0,0.00014132,2]
[334946763,1723666245459,-500.0,0.00014132,2]
[334946765,1723666245468,-500.0,0.00014132,2]
[334946767,1723666245477,-500.0,0.00014132,2]
[334946769,1723666245486,-1350.66,0.00014132,2]
[334946771,1723666245496,-500.0,0.00014132,2]
[334946773,1723666245505,-500.0,0.00014132,2]
[334946774,1723666245514,-500.0,0.00014132,2]
[334946776,1723666245524,-892.95,0.00014132,2]
[334946778,1723666245533,-500.0,0.00014132,2]
[334946780,1723666245543,-500.0,0.00014132,2]
[334946782,1723666245552,-272.16874245,0.00014132,2]
[334946784,1723666245561,-500.0,0.00014132,2]
[334946786,1723666245572,-500.0,0.00014132,2]
[334946788,1723666245581,-500.0,0.00014132,2]
[334946790,1723666245590,-500.0,0.00014132,2]
[334946791,1723666245599,-510.57,0.00014132,2]
[334946793,1723666245610,-500.0,0.00014132,2]
[334946795,1723666245620,-500.0,0.00014132,2]
[334946798,1723666245630,-535.70821064,0.00014132,2]
[334946800,1723666245640,-500.0,0.00014132,2]
[334946802,1723666245649,-1000.0,0.00014132,2]
[334946804,1723666245659,-500.0,0.00014132,2]
[334946805,1723666245668,-500.0,0.00014132,2]
[334946807,1723666245677,-500.0,0.00014132,2]
[334946809,1723666245687,-500.0,0.00014132,2]
[334946811,1723666245696,-745.67,0.00014132,2]
[334946813,1723666245705,-500.0,0.00014132,2]
[334946815,1723666245715,-451.05201391,0.00014132,2]
[334946817,1723666245724,-500.0,0.00014132,2]
[334946819,1723666245734,-528.87262019,0.00014132,2]
[334946821,1723666245743,-500.0,0.00014132,2]
[334946823,1723666245752,-500.0,0.00014132,2]
[334946825,1723666245761,-400.0,0.00014132,2]
[334946827,1723666245770,-500.0,0.00014132,2]
[334946829,1723666245779,-538.72341555,0.00014132,2]
[334946831,1723666245788,-1082.08,0.00014132,2]
[334946833,1723666245797,-500.0,0.00014132,2]
[334946835,1723666245806,-500.0,0.00014132,2]
[334946837,1723666245816,-519.60293664,0.00014132,2]
[334946839,1723666245825,-552.57276891,0.00014132,2]
[334946841,1723666245834,-500.0,0.00014132,2]
[334946843,1723666245843,-500.0,0.00014132,2]
[334946845,1723666245853,-500.0,0.00014132,2]
[334946847,1723666245862,-575.99902381,0.00014132,2]
[334946848,1723666245871,-603.04542802,0.00014132,2]
[334946850,1723666245880,-500.0,0.00014132,2]
[334946852,1723666245889,-500.0,0.00014132,2]
[334946854,1723666245898,-518.83780847,0.00014132,2]
[334946856,1723666245907,-500.0,0.00014132,2]
[334946858,1723666245917,-500.0,0.00014132,2]
[334946860,1723666245926,-500.0,0.00014132,2]
[334946862,1723666245935,-500.0,0.00014132,2]
[334946864,1723666245944,-500.0,0.00014132,2]
[334946866,1723666245953,-500.0,0.00014132,2]
[334946868,1723666245962,-500.0,0.00014132,2]
[334946870,1723666245971,-500.0,0.00014132,2]
[334946872,1723666245980,-505.35979107,0.00014132,2]
[334946873,1723666245989,-500.0,0.00014132,2]
[334946875,1723666245998,-500.0,0.00014132,2]
[334946877,1723666246007,-500.0,0.00014132,2]
[334946879,1723666246016,-595.41,0.00014132,2]
[334946881,1723666246025,-500.0,0.00014132,2]
[334946882,1723666246035,-549.85,0.00014132,2]
[334946884,1723666246044,-500.0,0.00014132,2]
[334946886,1723666246053,-500.0,0.00014132,2]
[334946888,1723666246062,-500.0,0.00014132,2]
[334946890,1723666246071,-655.84,0.00014132,2]
[334946892,1723666246081,-608.41468962,0.00014132,2]
[334946894,1723666246090,-500.0,0.00014132,2]
[334946896,1723666246099,-500.0,0.00014132,2]
[334946898,1723666246108,-500.0,0.00014132,2]
[334946900,1723666246118,-622.85,0.00014132,2]
[334946902,1723666246127,-500.0,0.00014132,2]
[334946905,1723666246137,-500.0,0.00014132,2]
[334946908,1723666246147,-517.51,0.00014132,2]
[334946911,1723666246157,-500.0,0.00014132,2]
[334946914,1723666246166,-500.0,0.00014132,2]
[334946917,1723666246175,-500.0,0.00014132,2]
[334946920,1723666246184,-612.93,0.00014133,2]
[334946922,1723666246193,-500.0,0.00014134,2]
[334946924,1723666246203,-500.0,0.00014134,2]
[334946926,1723666246212,-500.0,0.00014134,2]
[334946928,1723666246221,-500.0,0.00014134,2]
[334946929,1723666246231,-500.0,0.00014134,2]
[334946932,1723666246240,-506.84,0.00014134,2]
[334946933,1723666246249,-495.64715896,0.00014134,2]
[334946937,1723666246264,-4.35284104,0.00014134,2]
[334946940,1723666246273,-500.0,0.00014134,2]
[334946943,1723666246283,-500.0,0.00014134,2]
[334946946,1723666246293,-500.0,0.00014134,2]
[334946948,1723666246304,-500.0,0.00014134,2]
[334946950,1723666246313,-500.0,0.00014134,2]
[334946952,1723666246323,-500.0,0.00014134,2]
[334946954,1723666246333,-500.0,0.00014134,2]
[334946956,1723666246343,-500.0,0.00014134,2]
[334946958,1723666246352,-653.05,0.00014134,2]
[334946960,1723666246361,-500.0,0.00014134,2]
[334946962,1723666246370,-500.0,0.00014134,2]
[334946964,1723666246381,-500.0,0.00014134,2]
[334946966,1723666246391,-500.0,0.00014134,2]
[334946969,1723666246400,-500.0,0.00014134,2]
[334946971,1723666246409,-500.0,0.00014134,2]
[334946973,1723666246419,-500.0,0.00014134,2]
[334946975,1723666246428,-500.0,0.00014134,2]
[334946977,1723666246437,-500.0,0.00014134,2]
[334946979,1723666246447,-500.0,0.00014134,2]
[334946981,1723666246456,-500.0,0.00014134,2]
[334946984,1723666246465,-500.0,0.00014134,2]
[334946986,1723666246474,-500.0,0.00014134,2]
[334946988,1723666246483,-540.46,0.00014134,2]
[334946990,1723666246493,-500.0,0.00014134,2]
[334946992,1723666246502,-744.68,0.00014134,2]
[334946994,1723666246511,-500.0,0.00014134,2]
[334946995,1723666246520,-500.0,0.00014134,2]
[334946997,1723666246529,-500.0,0.00014134,2]
[334946999,1723666246539,-1043.61,0.00014134,2]
[334947001,1723666246548,-500.0,0.00014134,2]
[334947003,1723666246557,-559.89464221,0.00014134,2]
[334947005,1723666246566,-500.0,0.00014134,2]
[334947007,1723666246576,-632.89,0.00014134,2]
[334947009,1723666246585,-558.19,0.00014134,2]
[334947011,1723666246594,-500.0,0.00014134,2]
[334947013,1723666246603,-612.01948184,0.00014134,2]
[334947015,1723666246612,-500.0,0.00014134,2]
[334947017,1723666246623,-639.06,0.00014134,2]
[334947019,1723666246632,-1556.86,0.00014134,2]
[334947021,1723666246641,-500.0,0.00014134,2]
[334947023,1723666246651,-500.0,0.00014134,2]
[334947025,1723666246660,-593.92,0.00014134,2]
[334947027,1723666246669,-500.0,0.00014134,2]
[334947029,1723666246679,-1974.17,0.00014134,2]
[334947031,1723666246688,-500.0,0.00014134,2]
[334947033,1723666246698,-500.0,0.00014134,2]
[334947035,1723666246707,-533.39,0.00014134,2]
[334947037,1723666246716,-527.04,0.00014134,2]
[334947039,1723666246725,-500.0,0.00014134,2]
[334947041,1723666246734,-500.0,0.00014134,2]
[334947043,1723666246743,-415.65863855,0.00014134,2]
[334947045,1723666246753,-568.5,0.00014134,2]
[334947047,1723666246762,-500.0,0.00014134,2]
[334947049,1723666246771,-514.92,0.00014134,2]
[334947051,1723666246781,-500.0,0.00014134,2]
[334947053,1723666246790,-500.0,0.00014134,2]
[334947055,1723666246800,-566.98,0.00014134,2]
[334947057,1723666246809,-500.0,0.00014134,2]
[334947059,1723666246818,-500.0,0.00014134,2]
[334947060,1723666246828,-500.0,0.00014134,2]
[334947062,1723666246838,-500.0,0.00014134,2]
[334947064,1723666246847,-500.0,0.00014135,2]
[334947066,1723666246856,-500.0,0.00014135,2]
[334947068,1723666246865,-500.0,0.00014135,2]
[334947070,1723666246875,-500.0,0.00014135,2]
[334947072,1723666246884,-217.1280066,0.00014135,2]
[334947074,1723666246894,-527.84528528,0.00014135,2]
[334947076,1723666246903,-500.0,0.00014135,2]
[334947078,1723666246912,-500.0,0.00014135,2]
[334947080,1723666246921,-500.0,0.00014135,2]
[334947082,1723666246930,-500.0,0.00014135,2]
[334947084,1723666246940,-500.0,0.00014135,2]
[334947086,1723666246949,-500.0,0.00014135,2]
[334947088,1723666246958,-500.0,0.00014135,2]
[334947090,1723666246967,-500.0,0.00014135,2]
[334947092,1723666246976,-535.56589139,0.00014135,2]
[334947093,1723666246986,-500.0,0.00014135,2]
[334947094,1723666246995,-500.0,0.00014135,2]
[334947095,1723666247004,-500.0,0.00014135,2]
[334947097,1723666247013,-511.92,0.00014135,2]
[334947099,1723666247022,-500.0,0.00014135,2]
[334947101,1723666247032,-397.74746883,0.00014135,2]
[334947103,1723666247041,-500.0,0.00014135,2]
[334947105,1723666247050,-500.0,0.00014135,2]
[334947107,1723666247060,-500.0,0.00014135,2]
[334947109,1723666247069,-219.24725663,0.00014135,2]
[334947111,1723666247078,-207.54402122,0.00014135,2]
[334947112,1723666247087,-500.0,0.00014135,2]
[334947113,1723666247096,-500.0,0.00014135,2]
[334947115,1723666247106,-500.0,0.00014135,2]
[334947116,1723666247114,-106.59485127,0.00014135,2]
[334947117,1723666247136,-249.51,0.00013851,2]
[334947118,1723666247145,-393.40514873,0.00014135,2]
[334947119,1723666247154,-500.0,0.00014135,2]
[334947120,1723666247163,-500.0,0.00014135,2]
[334947121,1723666247173,-500.0,0.00014135,2]
[334947122,1723666247182,-500.0,0.00014135,2]
[334947123,1723666247191,-1136.37,0.00014135,2]
[334947124,1723666247200,-521.93332938,0.00014135,2]
[334947125,1723666247209,-500.0,0.00014135,2]
[334947126,1723666247218,-500.0,0.00014135,2]
[334947127,1723666247227,-500.0,0.00014135,2]
[334947128,1723666247236,-500.0,0.00014135,2]
[334947129,1723666247245,-500.0,0.00014135,2]
[334947130,1723666247254,-500.0,0.00014135,2]
[334947131,1723666247264,-792.71,0.00014135,2]
[334947132,1723666247273,-500.0,0.00014135,2]
[334947133,1723666247282,-500.0,0.00014135,2]
[334947134,1723666247291,-500.0,0.00014135,2]
[334947135,1723666247303,-500.0,0.00014135,2]
[334947136,1723666247414,-500.0,0.00014135,2]
[334947137,1723666247430,-500.0,0.00014135,2]
[334947138,1723666247439,-500.0,0.00014135,2]
[334947139,1723666247449,-500.0,0.00014135,2]
[334947140,1723666247458,-500.0,0.00014135,2]
[334947141,1723666247467,-500.0,0.00014135,2]
[334947142,1723666247476,-517.8981763,0.00014135,2]
[334947143,1723666247485,-500.0,0.00014135,2]
[334947144,1723666247495,-500.0,0.00014135,2]
[334947145,1723666247504,-500.0,0.00014244,2]
[334947146,1723666247514,-500.0,0.00014244,2]
[334947147,1723666247522,-1682.27,0.00014244,2]
[334947148,1723666247532,-500.0,0.00014244,2]
[334947149,1723666247541,-500.0,0.00014244,2]
[334947150,1723666247550,-500.0,0.00014244,2]
[334947151,1723666247560,-500.0,0.00014244,2]
[334947152,1723666247569,-500.0,0.00014244,2]
[334947153,1723666247578,-500.0,0.00014244,2]
[334947154,1723666247588,-500.0,0.00014244,2]
[334947155,1723666247597,-500.0,0.00014244,2]
[334947156,1723666247607,-500.0,0.00014244,2]
[334947157,1723666247616,-500.0,0.00014244,2]
[334947158,1723666247626,-500.0,0.00014244,2]
[334947159,1723666247635,-500.0,0.00014244,2]
[334947160,1723666247645,-500.0,0.00014244,2]
[334947161,1723666247654,-500.0,0.00014244,2]
[334947162,1723666247663,-1801.9,0.00014244,2]
[334947163,1723666247672,-500.0,0.00014244,2]
[334947164,1723666247682,-500.0,0.00014244,2]
[334947165,1723666247691,-500.0,0.00014244,2]
[334947166,1723666247700,-501.85362507,0.00014245,2]
[334947167,1723666247709,-500.0,0.00014245,2]
[334947168,1723666247718,-500.0,0.00014245,2]
[334947169,1723666247727,-500.0,0.00014245,2]
[334947170,1723666247737,-500.0,0.00014245,2]
[334947171,1723666247747,-395.29778619,0.00014245,2]
[334947172,1723666247756,-500.0,0.00014245,2]
[334947173,1723666247765,-500.0,0.00014245,2]
[334947174,1723666247774,-500.0,0.00014245,2]
[334947175,1723666247783,-500.0,0.00014245,2]
[334947176,1723666247793,-500.0,0.00014245,2]
[334947177,1723666247801,-500.0,0.00014245,2]
[334947178,1723666247810,-500.0,0.00014245,2]
[334947179,1723666247819,-500.0,0.00014245,2]
[334947180,1723666247828,-500.0,0.00014245,2]
[334947182,1723666247837,-500.0,0.00014245,2]
[334947183,1723666247846,-500.0,0.00014245,2]
[334947184,1723666247856,-1403.66,0.00014245,2]
[334947185,1723666247865,-500.0,0.00014245,2]
[334947186,1723666247874,-500.0,0.00014245,2]
[334947188,1723666247884,-500.0,0.00014245,2]
[334947189,1723666247893,-1407.09,0.00014245,2]
[334947190,1723666247902,-500.0,0.00014245,2]
[334947191,1723666247911,-500.0,0.00014245,2]
[334947192,1723666247920,-500.0,0.00014245,2]
[334947194,1723666247929,-764.75,0.00014245,2]
[334947195,1723666247938,-500.0,0.00014245,2]
[334947196,1723666247948,-632.31,0.00014245,2]
[334947197,1723666247957,-500.0,0.00014245,2]
[334947199,1723666247966,-579.730512,0.00014247,2]
[334947200,1723666247975,-437.0,0.000143,2]
[334947201,1723666247984,-400.0,0.00014309,2]
[334947202,1723666247992,-10176.2139508,0.000144,2]
[334947203,1723666248002,-500.0,0.00014405,2]
[334947204,1723666248011,-500.0,0.00014405,2]
[334947205,1723666248020,-500.0,0.00014405,2]
[334947206,1723666248029,-500.0,0.00014405,2]
[334947207,1723666248039,-500.0,0.00014405,2]
[334947208,1723666248048,-500.0,0.00014405,2]
[334947209,1723666248057,-500.0,0.00014405,2]